fUSD/lending_fUSD_20250402
["ID","MTS","AMOUNT","RATE_DAILY","PERIOD"]
[357027558,1743589836565,-510.66759247,0.00055547,120]
[357027559,1743589836575,-500.0,0.00055547,120]
[357027560,1743589836587,-500.29530479,0.00055547,120]
[357027561,1743589836597,-500.0,0.00055547,120]
[357027562,1743589836606,-500.0,0.00055547,120]
[357027563,1743589836615,-500.0,0.00055547,120]
[357027564,1743589836625,-500.0,0.00055547,120]
[357027565,1743589836634,-497.29142,0.00055547,120]
[357027566,1743589836644,-500.0,0.00055547,120]
[357027567,1743589836653,-500.0,0.00055547,30]
[357027568,1743589836662,-555.12,0.00055547,120]
[357027569,1743589836672,-500.0,0.00055547,120]
[357027570,1743589836681,-500.0,0.00055547,120]
[357027571,1743589836690,-550.07285562,0.0005558,4]
[357027572,1743589836699,-151.0,0.0005559,120]
[357027573,1743589836709,-151.0,0.0005559,120]
[357027574,1743589836718,-151.0,0.0005559,120]
[357027575,1743589836728,-151.0,0.0005559,120]
[357027576,1743589836737,-2936.07,0.0005559,120]
[357027577,1743589836747,-2936.07,0.0005559,120]
[357027578,1743589836756,-151.41,0.0005559,120]
[357027579,1743589836765,-15507.42,0.000556,2]
[357027580,1743589836775,-550.07285562,0.0005579,4]
[357027581,1743589836785,-1800.0,0.000558,20]
[357027582,1743589836794,-173.08,0.00055862,120]
[357027583,1743589836803,-550.07285562,0.0005589,4]
[357027584,1743589836813,-1177.83,0.0005589,2]
[357027585,1743589836822,-500.0,0.0005589,2]
[357027586,1743589836832,-1414.52,0.0005589,120]
[357027587,1743589836842,-5768.71797289,0.00055899,2]
[357027588,1743589836851,-184.3526,0.000559,2]
[357027589,1743589836860,-46107.2982,0.000559,2]
[357027590,1743589836869,-2700.0,0.000559,20]
[357027591,1743589836882,-550.07285562,0.00055979,4]
[357027592,1743589836891,-2750.3642781,0.0005598,4]
[357027593,1743589836901,-151.0,0.0005599,120]
[357027594,1743589836914,-151.0,0.0005599,120]
[357027595,1743589836923,-151.0,0.0005599,120]
[357027596,1743589836933,-151.0,0.0005599,120]
[357027597,1743589836942,-151.0,0.0005599,120]
[357027598,1743589836952,-151.41,0.0005599,120]
[357027599,1743589836962,-151.41,0.0005599,120]
[357027600,1743589836971,-151.41,0.0005599,120]
[357027601,1743589836981,-150.0,0.00056,2]
[357027602,1743589836990,-21156.64496736,0.00056,120]
[357027603,1743589836999,-32578.28393897,0.00056,120]
[357027604,1743589837059,-434.075,0.00056,120]
[357027605,1743589837074,-570.09,0.00056,120]
[357027606,1743589837090,-66417.55106103,0.00056,120]
[357027607,1743589837100,-43647.65,0.00056,120]
[357027608,1743589837109,-151.0,0.00056,120]
[357027609,1743589837118,-151.0,0.00056,120]
[357027610,1743589837128,-151.0,0.00056,120]
[357027611,1743589837138,-151.0,0.00056,120]
[357027612,1743589837148,-151.0,0.00056,120]
[357027613,1743589837158,-239.185709,0.00056,120]
[357027614,1743589837168,-151.0,0.00056,120]
[357027615,1743589837177,-151.0,0.00056,120]
[357027616,1743589837186,-151.0,0.00056,120]
[357027617,1743589837195,-151.0,0.00056,120]
[357027618,1743589837205,-151.0,0.00056,120]
[357027619,1743589837215,-151.0,0.00056,120]
[357027620,1743589837225,-151.0,0.00056,120]
[357027621,1743589837234,-151.0,0.00056,120]
[357027622,1743589837244,-151.0,0.00056,120]
[357027623,1743589837258,-151.0,0.00056,120]
[357027624,1743589837268,-151.0,0.00056,120]
[357027625,1743589837279,-161.836632,0.00056,120]
[357027626,1743589837288,-161.654689,0.00056,120]
[357027627,1743589837299,-2936.07,0.00056,120]
[357027628,1743589837308,-2936.07,0.00056,120]
[357027629,1743589837318,-2936.07,0.00056,120]
[357027630,1743589837328,-2936.07,0.00056,120]
[357027631,1743589837337,-73630.91662907,0.00056,120]
[357027632,1743589837350,-2873.33390221,0.00056,120]
[357027637,1743589837920,-151.0,0.00056,120]
[357027638,1743589837930,-5118.87517922,0.00056,120]
[357027639,1743589837943,-348.97503798,0.00056,120]
[357027640,1743589837955,-41626.55118026,0.00056,120]
[357027647,1743589839773,-854.0685626,0.00056,120]
[357027648,1743589839884,-42600.0,0.00056,120]
[357027649,1743589839896,-359.72861068,0.00056,120]
[357027650,1743589839950,-3232.02323053,0.00056,120]
[357027654,1743589841538,-0.01417766,0.00056,120]
[357027655,1743589841552,-3610.68737391,0.00056,120]
[357027656,1743589841563,-99965.96611588,0.00056,120]
[357027657,1743589841572,-150.5,0.00056,120]
[357027658,1743589841581,-858.35,0.00056027,30]
[357027659,1743589841590,-223.1,0.00056033,2]
[357027660,1743589841599,-632.51465788,0.00056073,15]
[357027661,1743589841609,-150.0,0.00056074,2]
[357027662,1743589841617,-500.0,0.00056095,120]
[357027663,1743589841627,-325.72,0.00056095,12]
[357027664,1743589841636,-500.0,0.00056095,120]
[357027665,1743589841646,-500.0,0.00056095,120]
[357027666,1743589841655,-500.0,0.00056095,120]
[357027667,1743589841665,-500.0,0.00056095,120]
[357027668,1743589841674,-500.0,0.00056095,120]
[357027669,1743589841683,-500.0,0.00056095,120]
[357027670,1743589841693,-500.0,0.00056095,30]
[357027671,1743589841702,-500.0,0.00056095,120]
[357027672,1743589841712,-299.68272795,0.00056095,120]
[357027689,1743589842755,-200.31727205,0.00056095,120]
[357027690,1743589842766,-441.0,0.00056304,30]
[357027691,1743589842775,-52.57096793,0.00056438,2]
[357027693,1743589842885,-0.27928265,0.00056438,2]
[357027745,1743589844215,-1124.97974942,0.00056438,2]
[357027746,1743589844224,-500.0,0.00056438,2]
[357027747,1743589844234,-1414.52,0.00056438,120]
[357027748,1743589844243,-151.41,0.0005649,120]
[357027749,1743589844253,-151.41,0.0005649,120]
[357027750,1743589844262,-26881.70024253,0.000565,59]
[357027751,1743589844271,-246320.52,0.000565,120]
[357027752,1743589844281,-151.0,0.000565,120]
[357027753,1743589844290,-151.0,0.000565,120]
[357027754,1743589844299,-151.0,0.000565,120]
[357027755,1743589844309,-151.0,0.000565,120]
[357027756,1743589844319,-151.0,0.000565,120]
[357027757,1743589844329,-151.0,0.000565,120]
[357027758,1743589844338,-2936.07,0.000565,120]
[357027759,1743589844348,-2936.07,0.000565,120]
[357027760,1743589844357,-151.0,0.000565,120]
[357027761,1743589844366,-163.88,0.00056643,120]
[357027762,1743589844375,-358.48,0.00056643,120]
[357027763,1743589844384,-500.0,0.00056643,120]
[357027764,1743589844393,-500.0,0.00056643,120]
[357027765,1743589844403,-581.78,0.00056643,120]
[357027766,1743589844412,-436.63811056,0.00056643,120]
[357027767,1743589844422,-500.0,0.00056643,120]
[357027768,1743589844431,-500.0,0.00056643,30]
[357027769,1743589844440,-500.0,0.00056643,120]
[357027770,1743589844449,-500.0,0.00056643,120]
[357027771,1743589844461,-441.0,0.00056856,30]
[357027772,1743589844472,-868.51236238,0.00056878,15]
[357027773,1743589844482,-151.41,0.0005689,120]
[357027774,1743589844491,-9900.8529,0.0005689,2]
[357027775,1743589844502,-152.85821456,0.000569,66]
[357027776,1743589844511,-88888.0,0.000569,120]
[357027777,1743589844520,-3600.0,0.000569,20]
[357027778,1743589844530,-500.0,0.00056973,14]
[357027779,1743589844540,-500.0,0.00056973,15]
[357027780,1743589844549,-500.0,0.00056973,7]
[357027781,1743589844559,-1177.83,0.00056986,2]
[357027782,1743589844569,-500.0,0.00056986,2]
[357027783,1743589844579,-1414.52,0.00056986,120]
[357027784,1743589844589,-151.41,0.0005699,120]
[357027785,1743589844599,-151.41,0.0005699,120]
[357027786,1743589844608,-151.41,0.0005699,120]
[357027787,1743589844617,-151.41,0.0005699,120]
[357027788,1743589844628,-151.41,0.0005699,120]
[357027789,1743589844638,-151.41,0.0005699,120]
[357027790,1743589844648,-151.41,0.0005699,120]
[357027791,1743589844657,-151.41,0.0005699,120]
[357027792,1743589844667,-999.0,0.00056999,120]
[357027793,1743589844676,-355113.68239064,0.00057,120]
[357027798,1743589845954,-188.90581863,0.00056999,120]
[357027799,1743589845965,-93646.33293987,0.00057,120]
[357027800,1743589845977,-51239.98466949,0.00057,120]
[357027801,1743589845988,-198757.43553046,0.00057,120]
[357027809,1743589846193,-2011.743048,0.00057,120]
[357028023,1743589848381,3199.40957194,0.000488,120]
[357028093,1743589864335,500.0,0.00034972,2]
[357028094,1743589878630,-374.0,0.00055387,30]
[357028095,1743589878656,-374.0,0.00055958,30]
[357028096,1743589878682,-374.0,0.00056529,30]
[357028097,1743589878708,-280.0,0.00056999,90]
[357028098,1743589878750,-23598.0,0.00057,120]
[357028099,1743589879708,-25000.0,0.00057,120]
[357028100,1743589880553,-25000.0,0.00057,120]
[357028101,1743589881289,-25000.0,0.00057,120]
[357028102,1743589924284,500.0,0.00035178,2]
[357028103,1743590103174,1115.78,0.0002501,120]
[357028104,1743590103312,635.43399222,0.0002501,120]
[357028105,1743590285979,-150.0,0.00033597,2]
[357028106,1743590360827,-500.0,0.0003354,2]
[357028107,1743590404837,500.0,0.00033328,2]
[357028109,1743590466034,500.0,0.00033205,2]
[357028110,1743590524268,395.41,0.00033205,2]
[357028111,1743590737097,-500.0,0.00032929,2]
[357028112,1743590737118,-176.0,0.00041,14]
[357028113,1743590737139,-500.0,0.00045205,60]
[357028114,1743590737159,-1000.0,0.00046575,120]
[357028115,1743590737181,-1000.0,0.00046849,120]
[357028116,1743590737203,-305.02851904,0.00050413,2]
[357028117,1743590737223,-289.98355149,0.00052473,10]
[357028118,1743590737253,-211.0911857,0.00052473,10]
[357028119,1743590737274,-499.31236529,0.00052473,10]
[357028120,1743590737297,-160.60405449,0.00052473,10]
[357028121,1743590737317,-500.0,0.00052473,10]
[357028122,1743590737337,-6744.76125109,0.0005249,2]
[357028123,1743590837106,-154.88,0.00026849,2]
[357028124,1743590837128,-84.0866829,0.00049973,10]
[357028125,1743590837157,-415.9133171,0.00049973,10]
[357028126,1743590837179,-318.56530871,0.00049999,120]
[357028127,1743590837200,-500.0,0.00049999,120]
[357028128,1743590837222,-226.63761041,0.00049999,120]
[357028129,1743590837247,-5162.10385864,0.0005,120]
[357028130,1743590956104,-150.0,0.000498,120]
[357028131,1743590956125,-506.94451099,0.00049973,10]
[357028132,1743590964107,-781.42450791,0.00049989,10]
[357028133,1743590964129,-37002.92041209,0.0004999,4]
[357028134,1743590969115,-3520.85531801,0.0004999,4]
[357028135,1743590969142,-14835.1246259,0.0005,120]
[357028136,1743590973081,-21023.52026238,0.0005,120]
[357028137,1743591005579,901.639,0.00048415,2]
[357028139,1743591031844,-276.31860277,0.0005,120]
[357028140,1743591031855,-322.7872,0.0005,120]
[357028141,1743591031897,-381.22603053,0.0005,120]
[357028142,1743591031950,-8268.68028938,0.0005,120]
[357028143,1743591032005,-374.43603497,0.0005,120]
[357028144,1743591032058,-943.90431232,0.0005,120]
[357028145,1743591032070,-49407.06815825,0.0005,120]
[357028146,1743591032113,-274.64073182,0.0005,120]
[357028153,1743591037862,-24046.78180288,0.0005,120]
[357028154,1743591037928,-901.75209534,0.0005,120]
[357028155,1743591038146,-735.9133537,0.0005,120]
[357028156,1743591038159,-9262.70681193,0.0005,120]
[357028157,1743591038170,-5122.70777717,0.0005,120]
[357028158,1743591038181,-16324.8,0.0005,120]
[357028162,1743591038218,-26.55185355,0.0005,120]
[357028166,1743591039974,-11939.67097391,0.0005,120]
[357028167,1743591040132,-413.22446657,0.0005,120]
[357028168,1743591040382,-300.0,0.0005,120]
[357028209,1743591043778,-4002.3379599,0.0005,120]
[357028210,1743591043962,-4751.10802384,0.0005,120]
[357028211,1743591043973,-4762.30987401,0.0005,120]
[357028212,1743591044054,-0.75698291,0.0005,120]
[357028213,1743591044069,-5207.42288312,0.0005,120]
[357028214,1743591044081,-362.76485203,0.0005,120]
[357028219,1743591045844,-416.30793719,0.0005,120]
[357028220,1743591045856,-461.1321484,0.0005,120]
[357028221,1743591045964,-84415.93321994,0.0005,120]
[357028222,1743591046114,-50534.00363221,0.0005,120]
[357028223,1743591046126,-5712.63904649,0.0005,120]
[357028224,1743591046168,-8490.0,0.0005,120]
[357028387,1743591047835,1255.13777874,0.000488,120]
[357028424,1743591327211,500.0,0.00032,120]
[357028429,1743591951105,-151.89,0.00026849,2]
[357028430,1743591951126,-250.0,0.00027,2]
[357028431,1743591951148,-300.0,0.00029,2]
[357028432,1743591951170,-61.45994207,0.00034716,2]
[357028433,1743592036087,-90.43005793,0.00034716,2]
[357028434,1743592036110,-246.8984549,0.000414,5]
[357028435,1743592042074,-205.70547533,0.000414,5]
[357028436,1743592053073,-5100.39606977,0.000414,5]
[357028437,1743592053093,-1101.21422058,0.00042483,2]
[357028438,1743592053116,-151.89,0.00042583,2]
[357028439,1743592053136,-220.46,0.00047271,2]
[357028440,1743592053156,-151.63694787,0.00048,60]
[357028441,1743592053178,-1000.0,0.00048,120]
[357028442,1743592053199,-4241.67101122,0.000488,120]
[357028443,1743592053220,-3493.65195365,0.00049,120]
[357028447,1743592150173,4239.67929952,0.00046,120]
[357028449,1743592161079,-857.01419629,0.00049,120]
[357028450,1743592161099,-1000.0,0.00049,120]
[357028451,1743592161120,-155.45,0.00049125,120]
[357028452,1743592161141,-16259.61592745,0.00049283,120]
[357028453,1743592171084,-12790.29407255,0.00049283,120]
[357028454,1743592171105,-1293.2,0.00049398,120]
[357028455,1743592171127,-150.0,0.00049484,2]
[357028456,1743592171147,-220.46,0.00049535,2]
[357028457,1743592171167,-1000.0,0.00049647,120]
[357028458,1743592171186,-720.1032,0.000499,2]
[357028459,1743592171218,-163.97168784,0.000499,15]
[357028460,1743592171242,-653.75158422,0.000499,22]
[357028461,1743592171262,-41.30687421,0.000499,15]
[357028462,1743592174100,-115.25159261,0.000499,15]
[357028463,1743592174123,-186.55969773,0.000499,28]
[357028464,1743592174147,-2500.0,0.000499,2]
[357028465,1743592174171,-283.97562398,0.000499,120]
[357028466,1743592174194,-506.41551795,0.00049973,10]
[357028467,1743592174217,-502.22565943,0.00049973,2]
[357028468,1743592174244,-500.0,0.00049973,10]
[357028469,1743592174271,-2172.86667256,0.0004998,2]
[357028470,1743592174295,-150.0,0.00049989,9]
[357028471,1743592174319,-11723.83313176,0.0004999,4]
[357028478,1743592232100,-250.0,0.00034568,120]
[357028479,1743592232109,-6269.76844015,0.0004999,4]
[357028480,1743592232121,-607.90201154,0.0004999,4]
[357028481,1743592232153,-5058.12291755,0.0004999,4]
[357028482,1743592232162,-412.45,0.00049999,88]
[357028483,1743592232171,-205.401,0.00049999,88]
[357028484,1743592232180,-222.9957161,0.00049999,120]
[357028485,1743592232190,-156.09700127,0.00049999,120]
[357028486,1743592232199,-21.06450846,0.0005,60]
[357028487,1743592232211,-2623.6595717,0.0005,60]
[357028488,1743592232230,-1199.54019934,0.0005,60]
[357028489,1743592232365,-1400.2024902,0.0005,60]
[357028603,1743592237991,-1000.0,0.000499,2]
[357028604,1743592238001,-2562.16653992,0.0005,60]
[357028605,1743592238012,-5634.21681165,0.0005,60]
[357028606,1743592238022,-12240.95487609,0.0005,120]
[357028609,1743592238033,-6724.33629551,0.0005,120]
[357028610,1743592238044,-252.90102083,0.0005,120]
[357028611,1743592238055,-627.98601032,0.0005,120]
[357028612,1743592238098,-700.65332309,0.0005,120]
[357028613,1743592238150,-440.57910089,0.0005,120]
[357028614,1743592238161,-1880.99999999,0.0005,120]
[357028615,1743592238206,-6532.29512205,0.0005,120]
[357028616,1743592238219,-1008.99495766,0.0005,120]
[357028617,1743592238260,-321.33,0.0005,120]
[357028618,1743592238271,-1143.5389423,0.0005,120]
[357028619,1743592238366,-2494.64714518,0.0005,120]
[357028829,1743592240604,-362.0190167,0.00049,60]
[357029281,1743592245925,-188.18159935,0.00049,60]
[357029285,1743592246133,-449.79938395,0.00049,60]
[357029286,1743592246145,-1000.0,0.000491,60]
[357029287,1743592246154,-268.08063856,0.0004999,30]
[357029288,1743592246358,-150.63936144,0.0004999,30]
[357029289,1743592246368,-126170.14740404,0.0005,120]
[357029290,1743592246378,-1000.0,0.0005,120]
[357029291,1743592246387,-1200.0,0.0005,120]
[357029292,1743592246397,-121476.63343447,0.0005,120]
[357029293,1743592246449,-0.84888914,0.0005,120]
[357029297,1743592558135,150.0,0.00032,120]
[357029298,1743592909795,500.0,0.00032,120]
[357029299,1743592920386,383.63,0.00032,120]
[357029300,1743592990467,500.0,0.00032,120]
[357029301,1743593108606,3700.0,0.00015,2]
[357029302,1743593109197,-250.0,0.00015,2]
[357029303,1743593132772,177.96510875,0.0002,120]
[357029304,1743593136107,-266.25545905,0.00015,2]
[357029305,1743593137129,1703.79547725,8e-05,2]
[357029306,1743593140113,-200.0,0.00015,2]
[357029309,1743593155491,2608.93060217,6.94e-05,2]
[357029310,1743593155814,-200.0,0.00015,2]
[357029311,1743593159824,-200.0,0.00046575,120]
[357029312,1743593163505,-179.8895,0.00046575,120]
[357029313,1743593229081,-333.4231736,0.00015,2]
[357029314,1743593229784,-184.13930065,0.00015,2]
[357029315,1743593231128,357.2315051,0.0002301,120]
[357029316,1743593247088,-12209.52905876,0.00015,2]
[357029317,1743593247775,-152.35,0.00015,2]
[357029324,1743593320698,2133.64894812,0.000145,120]
[357029327,1743593325822,628.15736914,0.0002,120]
[357029332,1743593347104,-26952.89394,0.00015,2]
[357029333,1743593347199,-8009.339198,0.00015,2]
[357029334,1743593349127,-29804.6518,0.00015,2]
[357029335,1743593352129,-79315.60086156,0.00015,2]
[357029336,1743593353113,-6514.6083575,0.00015,2]
[357029337,1743593353137,-1013.0,0.0002,6]
[357029338,1743593353159,-174.94,0.00026849,2]
[357029339,1743593353180,-250.0,0.00027,2]
[357029340,1743593353201,-300.0,0.00029,2]
[357029341,1743593353226,-13000.0,0.00039,7]
[357029342,1743593353247,-455.58544443,0.0004,30]
[357029343,1743593353269,-12475.78029807,0.0004,3]
[357029344,1743593354092,-37566.32977965,0.0004,3]
[357029345,1743593354114,-620.1105,0.00046575,120]
[357029346,1743593363087,-198.41,0.00048233,2]
[357029347,1743593363111,-174.94,0.00048877,2]
[357029348,1743593363132,-152.3,0.00048894,2]
[357029349,1743593363152,-461.92035597,0.00049,2]
[357029350,1743593363172,-157.0,0.000491,120]
[357029351,1743593363193,-1000.0,0.000492,60]
[357029352,1743593363216,-715.0,0.000493,60]
[357029353,1743593363236,-5141.1079798,0.0004933,2]
[357029354,1743593363258,-500.0,0.0004933,120]
[357029355,1743593363277,-500.0,0.0004933,120]
[357029356,1743593363297,-500.0,0.0004933,120]
[357029357,1743593363317,-894.23843349,0.0004933,120]
[357029358,1743593363336,-500.0,0.0004933,120]
[357029359,1743593363356,-500.0,0.0004933,120]
[357029360,1743593363376,-605.64195692,0.0004933,120]
[357029361,1743593363395,-273.52828458,0.0004933,120]
[357029362,1743593363415,-150.0,0.0004933,120]
[357029363,1743593363436,-150.0,0.0004933,120]
[357029364,1743593363456,-210.69259019,0.0004933,120]
[357029365,1743593363476,-500.0,0.0004933,120]
[357029366,1743593363499,-500.0,0.0004933,120]
[357029367,1743593363520,-500.0,0.0004933,120]
[357029368,1743593363540,-500.0,0.0004933,120]
[357029369,1743593363561,-662.25191646,0.0004933,120]
[357029370,1743593363582,-150.0,0.0004933,120]
[357029371,1743593363602,-150.0,0.0004933,120]
[357029372,1743593363622,-150.0,0.0004933,120]
[357029373,1743593363643,-151.6646585,0.0004933,120]
[357029374,1743593363663,-500.0,0.0004933,120]
[357029375,1743593363683,-500.0,0.0004933,120]
[357029376,1743593363704,-500.0,0.0004933,120]
[357029377,1743593363724,-500.0,0.0004933,120]
[357029378,1743593363745,-9.90439483,0.0004933,120]
[357029379,1743593366017,151.0,0.00022546,2]
[357029380,1743593374099,-490.09560517,0.0004933,120]
[357029381,1743593374121,-500.0,0.0004933,120]
[357029382,1743593374142,-500.0,0.0004933,120]
[357029383,1743593374164,-500.0,0.0004933,120]
[357029384,1743593374185,-500.0,0.0004933,120]
[357029385,1743593374208,-500.0,0.0004933,120]
[357029386,1743593374232,-500.0,0.0004933,120]
[357029387,1743593374384,-500.0,0.0004933,120]
[357029388,1743593374409,-500.0,0.0004933,120]
[357029389,1743593374431,-500.0,0.0004933,120]
[357029390,1743593374452,-500.0,0.0004933,120]
[357029391,1743593374472,-609.0,0.0004933,120]
[357029392,1743593374493,-1179.0,0.0004933,120]
[357029393,1743593374513,-1179.0,0.0004933,120]
[357029394,1743593374533,-1179.0,0.0004933,120]
[357029395,1743593374553,-1179.0,0.0004933,120]
[357029396,1743593374573,-1179.0,0.0004933,120]
[357029397,1743593374593,-1179.0,0.0004933,120]
[357029398,1743593374614,-1179.0,0.0004933,120]
[357029399,1743593374634,-1179.0,0.0004933,120]
[357029400,1743593374654,-1179.0,0.0004933,120]
[357029401,1743593374673,-1179.0,0.0004933,120]
[357029402,1743593374694,-1179.0,0.0004933,120]
[357029403,1743593374716,-1179.0,0.0004933,120]
[357029404,1743593374736,-1179.0,0.0004933,120]
[357029405,1743593374756,-494.80351501,0.0004933,120]
[357029406,1743593377148,210.7,0.00022546,2]
[357029407,1743593413062,619.6,0.00032,120]
[357029413,1743593432146,-425.85126356,0.0004933,120]
[357029416,1743593432202,-258.34522143,0.0004933,120]
[357029417,1743593432211,-1179.0,0.0004933,120]
[357029418,1743593432221,-1179.0,0.0004933,120]
[357029419,1743593432233,-1179.0,0.0004933,120]
[357029420,1743593432243,-1179.0,0.0004933,120]
[357029421,1743593432254,-1179.0,0.0004933,120]
[357029422,1743593432267,-1192.95787468,0.0004933,120]
[357029423,1743593432277,-500.0,0.0004933,120]
[357029424,1743593432287,-500.0,0.0004933,120]
[357029425,1743593432296,-500.0,0.0004933,120]
[357029426,1743593432307,-110.82507895,0.0004933,120]
[357029427,1743593432319,-389.17492105,0.0004933,120]
[357029428,1743593432328,-124.82507895,0.0004933,120]
[357029429,1743593432340,-720.82634588,0.0004933,120]
[357029430,1743593432349,-150.0,0.0004933,2]
[357029431,1743593432358,-500.0,0.0004933,120]
[357029432,1743593432367,-500.0,0.0004933,120]
[357029433,1743593432377,-201.92800661,0.0004933,120]
[357029434,1743593432388,-639.61802944,0.0004933,120]
[357029435,1743593432397,-150.0,0.0004933,2]
[357029436,1743593432406,-343.33137955,0.000494,120]
[357029437,1743593432418,-156.66862045,0.000494,120]
[357029438,1743593432427,-153.59127,0.000495,87]
[357029439,1743593432437,-370.35187795,0.0004952,120]
[357029440,1743593432447,-370.35187795,0.00049589,120]
[357029441,1743593432457,-150.13,0.0004968,120]
[357029442,1743593432466,-329.96,0.000499,88]
[357029443,1743593432475,-205.402,0.000499,88]
[357029445,1743593432484,-108.2574807,0.000499,2]
[357029448,1743593432499,-455.87058518,0.000499,2]
[357029450,1743593432511,-864.10549473,0.000499,2]
[357029451,1743593432522,-465.71753939,0.000499,2]
[357029452,1743593432531,-44.53966589,0.00049973,120]
[357029455,1743593432546,-343.35678489,0.00049973,120]
[357029457,1743593432555,-704.072,0.00049988,2]
[357029459,1743593432565,-162.06721511,0.0004999,4]
[357029728,1743593438121,-566.26057689,0.0004999,4]
[357029729,1743593438177,-2886.33736776,0.0004999,4]
[357029730,1743593438188,-200.0,0.0005,15]
[357029731,1743593438197,-461.92035597,0.0005,2]
[357029732,1743593438208,-7876.996637,0.0005,120]
[357029733,1743593438338,-1683.99929054,0.0005,120]
[357029734,1743593438349,-11900.30730437,0.0005,120]
[357029735,1743593438361,-9699.07474949,0.0005,120]
[357029736,1743593438373,-12940.6215288,0.0005,120]
[357029737,1743593438385,-5626.8859161,0.0005,120]
[357029738,1743593438397,-12266.30718358,0.0005,120]
[357029739,1743593438409,-2228.22755807,0.0005,120]
[357029740,1743593438419,-476.81295156,0.0005,120]
[357029757,1743593440560,-0.01522127,0.0005,120]
[357029803,1743593446357,-391.6691755,0.0005,120]
[357029807,1743593520642,500.0,0.00032,120]
[357029808,1743593678109,500.0,0.00032,120]
[357029809,1743593692790,498.93,0.00032,120]
[357029810,1743593704517,500.0,0.00032,120]
[357029811,1743593712529,500.0,0.00032,120]
[357029812,1743593723217,500.0,0.00032,120]
[357029814,1743593792435,500.0,0.00032,120]
[357029815,1743594058442,3600.0,0.00032,120]
[357029817,1743594230882,508.0,0.00032,120]
[357029819,1743594342116,-154.88,0.00026849,2]
[357029820,1743594342137,-150.0,0.00029534,2]
[357029821,1743594342156,-177.46,0.00038773,2]
[357029822,1743594342178,-235.81613712,0.000444,2]
[357029823,1743594345078,-580.90432876,0.000444,2]
[357029824,1743594358171,182.04372872,0.000148,2]
[357029825,1743594429088,-217.27953412,0.000444,2]
[357029826,1743594429112,-50.11703098,0.00045075,2]
[357029827,1743594432087,-99.88296902,0.00045075,2]
[357029828,1743594432109,-235.32,0.00046591,2]
[357029829,1743594432130,-150.0,0.0004684,2]
[357029830,1743594432151,-643.20829502,0.000471,2]
[357029831,1743594448081,-391.31905137,0.000471,2]
[357029832,1743594448102,-188.18159935,0.00048458,2]
[357029833,1743594448123,-438.0,0.0004849,5]
[357029834,1743594448143,-951.31160226,0.00048491,2]
[357029835,1743594451087,-796.86839774,0.00048491,2]
[357029836,1743594451108,-826.75310678,0.00048491,2]
[357029837,1743594452102,-314.09576752,0.00048491,2]
[357029839,1743594548094,-186.0,0.00045,120]
[357029840,1743594548116,-179.34134284,0.00048491,2]
[357029841,1743594571075,-150.13,0.00048095,2]
[357029842,1743594571096,-19794.41577311,0.00048491,2]
[357029843,1743594574097,-16703.99203698,0.00048491,2]
[357029852,1743594632353,-337.09612116,0.00047852,2]
[357029853,1743594632365,-12.90387884,0.00048289,2]
[357029854,1743594632485,-34.89952969,0.00048289,2]
[357029855,1743594632497,-7609.82659147,0.00048289,2]